lending/lending_fUSD_20240111
["ID","MTS","AMOUNT","RATE_DAILY","PERIOD"]
[311258236,1704999051031,-150.90642903,0.0004371,4]
[311258237,1704999051040,-150.90642903,0.0004371,4]
[311258238,1704999051050,-150.90642903,0.0004371,8]
[311258239,1704999051059,-150.0,0.00043716,2]
[311258240,1704999051069,-150.0,0.00043743,2]
[311258241,1704999051078,-150.0,0.00043758,2]
[311258242,1704999051087,-682.18168845,0.00043759,20]
[311258243,1704999051097,-150.0,0.00043766,2]
[311258244,1704999051106,-150.0,0.000438,2]
[311258245,1704999051115,-887.0,0.000438,2]
[311258246,1704999051124,-150.0,0.00043801,2]
[311258247,1704999051134,-150.0,0.00043803,2]
[311258248,1704999051143,-5000.0,0.00043835,30]
[311258249,1704999051152,-5000.0,0.00043835,32]
[311258250,1704999051162,-5000.0,0.00043835,34]
[311258251,1704999051171,-5000.0,0.00043835,36]
[311258252,1704999051181,-550.0,0.00043835,7]
[311258253,1704999051191,-3000.0,0.00043835,120]
[311258254,1704999051200,-250.0,0.00043835,10]
[311258255,1704999051209,-155.0,0.00043837,2]
[311258256,1704999051218,-160.01,0.0004384,10]
[311258257,1704999051228,-212.33,0.0004384,10]
[311258258,1704999051237,-182.71,0.0004384,10]
[311258259,1704999051246,-150.0,0.00043841,2]
[311258260,1704999051256,-150.0,0.00043843,2]
[311258261,1704999051265,-150.0,0.00043865,2]
[311258262,1704999051274,-150.0,0.00043868,2]
[311258263,1704999051283,-150.0,0.00043872,2]
[311258264,1704999051292,-150.0,0.00043875,2]
[311258265,1704999051302,-150.0,0.0004388,2]
[311258266,1704999051311,-155.0,0.000439,2]
[311258267,1704999051320,-682.18168845,0.00043908,21]
[311258268,1704999051329,-150.0,0.00043911,2]
[311258269,1704999051339,-167.55570048,0.0004395,120]
[311258270,1704999051348,-150.0,0.00043954,2]
[311258271,1704999051357,-500.0,0.00043962,7]
[311258272,1704999051367,-500.0,0.00043962,7]
[311258273,1704999051378,-171.71814317,0.00043967,30]
[311258274,1704999051387,-150.0,0.00043969,2]
[311258275,1704999051396,-150.0,0.00043969,2]
[311258276,1704999051405,-150.0,0.00043969,2]
[311258277,1704999051415,-150.0,0.00043969,2]
[311258278,1704999051424,-3000.0,0.00043972,120]
[311258279,1704999051434,-500.0,0.00043972,10]
[311258280,1704999051444,-837.5,0.0004398,120]
[311258281,1704999051588,-162.0,0.0004398,120]
[311258282,1704999051597,-163.0,0.0004398,120]
[311258283,1704999051607,-6550.586423,0.00043985,2]
[311258284,1704999051616,-500.0,0.00043987,28]
[311258285,1704999051626,-200.0,0.00043987,33]
[311258286,1704999051635,-828.0,0.0004399,120]
[311258287,1704999051645,-154.0,0.0004399,120]
[311258288,1704999051654,-157.0,0.0004399,120]
[311258289,1704999051664,-150.0,0.00043997,2]
[311258290,1704999051674,-289.48719423,0.00043997,2]
[311258291,1704999051683,-150.0,0.00043999,2]
[311258292,1704999051693,-800.0,0.00044,2]
[311258293,1704999051702,-2796.83782618,0.00044,33]
[311258294,1704999051712,-353.90180712,0.00044,21]
[311258295,1704999051721,-57750.55681228,0.00044,30]
[311258296,1704999051731,-2110.0,0.00044,15]
[311258297,1704999051740,-150.0,0.00044002,2]
[311258298,1704999051750,-171.71814317,0.00044021,30]
[311258299,1704999051760,-150.0,0.00044033,2]
[311258300,1704999051770,-1510.65544807,0.00044036,2]
[311258301,1704999051779,-150.0,0.00044048,2]
[311258302,1704999051789,-178.122,0.00044048,30]
[311258303,1704999051798,-150.0,0.00044048,30]
[311258304,1704999051808,-682.18168845,0.00044056,22]
[311258305,1704999051818,-150.0,0.00044059,2]
[311258306,1704999051828,-1500.0,0.00044067,2]
[311258307,1704999051838,-150.0,0.00044073,2]
[311258308,1704999051847,-151.68522207,0.0004408,22]
[311258309,1704999051859,-150.0,0.00044082,2]
[311258310,1704999051868,-1486.76,0.00044085,15]
[311258311,1704999051878,-1113.30385714,0.000441,4]
[311258312,1704999051887,-2000.0,0.000441,2]
[311258313,1704999051897,-759.71416389,0.000441,38]
[311258314,1704999051906,-550.0,0.00044109,7]
[311258315,1704999051916,-901.59948558,0.00044109,120]
[311258316,1704999051925,-750.0,0.00044109,10]
[311258317,1704999051935,-150.0,0.00044117,2]
[311258318,1704999051944,-150.0,0.00044143,2]
[311258319,1704999051954,-1500.0,0.00044145,2]
[311258320,1704999051963,-150.0,0.00044171,2]
[311258321,1704999051972,-150.0,0.00044172,2]
[311258322,1704999051982,-150.0,0.00044194,2]
[311258323,1704999051992,-150.0,0.00044195,2]
[311258324,1704999052001,-150.0,0.00044197,2]
[311258325,1704999052010,-900.0,0.000442,2]
[311258326,1704999052019,-900.0,0.000442,2]
[311258327,1704999052029,-900.0,0.000442,2]
[311258328,1704999052038,-900.0,0.000442,2]
[311258329,1704999052048,-900.0,0.000442,2]
[311258330,1704999052057,-900.0,0.000442,2]
[311258331,1704999052067,-900.0,0.000442,2]
[311258332,1704999052076,-900.0,0.000442,2]
[311258333,1704999052085,-900.0,0.000442,2]
[311258334,1704999052095,-900.0,0.000442,2]
[311258335,1704999052105,-900.0,0.000442,2]
[311258336,1704999052114,-900.0,0.000442,2]
[311258337,1704999052124,-900.0,0.000442,2]
[311258338,1704999052133,-900.0,0.000442,2]
[311258339,1704999052142,-900.0,0.000442,2]
[311258340,1704999052151,-900.0,0.000442,2]
[311258341,1704999052161,-900.0,0.000442,2]
[311258342,1704999052170,-900.0,0.000442,2]
[311258343,1704999052181,-900.0,0.000442,2]
[311258344,1704999052190,-900.0,0.000442,2]
[311258345,1704999052200,-900.0,0.000442,2]
[311258346,1704999052209,-900.0,0.000442,2]
[311258347,1704999052218,-900.0,0.000442,2]
[311258348,1704999052228,-900.0,0.000442,2]
[311258349,1704999052238,-900.0,0.000442,2]
[311258350,1704999052247,-900.0,0.000442,2]
[311258351,1704999052257,-900.0,0.000442,2]
[311258352,1704999052266,-900.0,0.000442,2]
[311258353,1704999052275,-900.0,0.000442,2]
[311258354,1704999052284,-900.0,0.000442,2]
[311258355,1704999052294,-900.0,0.000442,2]
[311258356,1704999052303,-900.0,0.000442,2]
[311258357,1704999052312,-900.0,0.000442,2]
[311258358,1704999052322,-900.0,0.000442,2]
[311258359,1704999052331,-900.0,0.000442,2]
[311258360,1704999052340,-900.0,0.000442,2]
[311258361,1704999052349,-900.0,0.000442,2]
[311258362,1704999052359,-900.0,0.000442,2]
[311258363,1704999052368,-900.0,0.000442,2]
[311258364,1704999052378,-900.0,0.000442,2]
[311258365,1704999052387,-900.0,0.000442,2]
[311258366,1704999052396,-900.0,0.000442,2]
[311258367,1704999052406,-900.0,0.000442,2]
[311258368,1704999052415,-900.0,0.000442,2]
[311258369,1704999052424,-900.0,0.000442,2]
[311258370,1704999052433,-900.0,0.000442,2]
[311258371,1704999052443,-900.0,0.000442,2]
[311258372,1704999052453,-900.0,0.000442,2]
[311258373,1704999052462,-900.0,0.000442,2]
[311258374,1704999052471,-900.0,0.000442,2]
[311258375,1704999052481,-900.0,0.000442,2]
[311258376,1704999052490,-900.0,0.000442,2]
[311258377,1704999052499,-900.0,0.000442,2]
[311258378,1704999052509,-900.0,0.000442,2]
[311258379,1704999052518,-900.0,0.000442,2]
[311258380,1704999052527,-900.0,0.000442,2]
[311258381,1704999052537,-900.0,0.000442,2]
[311258382,1704999052546,-900.0,0.000442,2]
[311258383,1704999052555,-900.0,0.000442,2]
[311258384,1704999052564,-900.0,0.000442,2]
[311258385,1704999052573,-900.0,0.000442,2]
[311258386,1704999052582,-900.0,0.000442,2]
[311258387,1704999052591,-248.0,0.000442,2]
[311258388,1704999052600,-900.0,0.000442,2]
[311258389,1704999052609,-900.0,0.000442,2]
[311258390,1704999052618,-900.0,0.000442,2]
[311258391,1704999052627,-900.0,0.000442,2]
[311258392,1704999052636,-900.0,0.000442,2]
[311258393,1704999052646,-900.0,0.000442,2]
[311258394,1704999052655,-900.0,0.000442,2]
[311258395,1704999052665,-900.0,0.000442,2]
[311258396,1704999052674,-900.0,0.000442,2]
[311258397,1704999052684,-900.0,0.000442,2]
[311258398,1704999052693,-682.18168845,0.00044205,22]
[311258399,1704999052702,-150.0,0.00044208,2]
[311258400,1704999052712,-150.0,0.00044222,2]
[311258401,1704999052722,-1500.0,0.00044226,2]
[311258402,1704999052731,-500.0,0.00044235,7]
[311258403,1704999052741,-500.0,0.00044235,7]
[311258404,1704999052751,-150.0,0.0004424,2]
[311258405,1704999052761,-702.82276441,0.00044246,10]
[311258406,1704999052770,-150.0,0.00044248,2]
[311258407,1704999052779,-150.0,0.0004425,2]
[311258408,1704999052789,-150.0,0.00044264,2]
[311258409,1704999052799,-150.0,0.00044268,2]
[311258410,1704999052808,-150.0,0.00044271,2]
[311258411,1704999052817,-150.0,0.00044271,4]
[311258412,1704999052827,-150.0,0.00044271,4]
[311258413,1704999052836,-150.0,0.00044278,2]
[311258414,1704999052845,-1500.0,0.00044281,2]
[311258415,1704999052857,-1500.0,0.00044292,2]
[311258416,1704999052866,-171.71814317,0.00044295,30]
[311258417,1704999052876,-1000.0,0.00044299,2]
[311258418,1704999052885,-2730.2,0.000443,5]
[311258419,1704999052895,-2730.2,0.000443,5]
[311258420,1704999052905,-2730.2,0.000443,5]
[311258421,1704999052914,-2730.2,0.000443,5]
[311258422,1704999052925,-2730.2,0.000443,5]
[311258423,1704999052934,-2730.2,0.000443,5]
[311258424,1704999052944,-2730.2,0.000443,5]
[311258425,1704999052954,-2730.2,0.000443,5]
[311258426,1704999052963,-2730.2,0.000443,5]
[311258427,1704999052973,-2730.2,0.000443,5]
[311258428,1704999052983,-2730.2,0.000443,5]
[311258429,1704999052993,-2730.2,0.000443,5]
[311258430,1704999053002,-2730.2,0.000443,5]
[311258431,1704999053012,-2730.2,0.000443,5]
[311258432,1704999053022,-2730.2,0.000443,5]
[311258433,1704999053032,-2730.2,0.000443,5]
[311258434,1704999053042,-2730.2,0.000443,5]
[311258435,1704999053052,-2730.2,0.000443,5]
[311258436,1704999053062,-2730.2,0.000443,5]
[311258437,1704999053071,-2730.2,0.000443,5]
[311258438,1704999053081,-157.54,0.000443,5]
[311258439,1704999053090,-157.54,0.000443,5]
[311258440,1704999053099,-157.54,0.000443,5]
[311258441,1704999053109,-157.54,0.000443,5]
[311258442,1704999053118,-164.83,0.00044329,30]
[311258443,1704999053128,-150.0,0.00044329,2]
[311258444,1704999053137,-150.0,0.0004433,2]
[311258445,1704999053147,-200.0,0.00044333,32]
[311258446,1704999053157,-150.0,0.00044337,2]
[311258447,1704999053166,-150.0,0.0004434,2]
[311258448,1704999053177,-150.0,0.00044341,2]
[311258449,1704999053187,-150.0,0.00044345,2]
[311258450,1704999053196,-1000.0,0.00044351,30]
[311258451,1704999053206,-682.18168845,0.00044354,23]
[311258452,1704999053215,-1500.0,0.00044362,2]
[311258453,1704999053225,-1000.0,0.00044372,30]
[311258454,1704999053234,-1000.0,0.00044377,30]
[311258455,1704999053243,-1000.0,0.00044377,30]
[311258456,1704999053253,-1000.0,0.00044377,30]
[311258457,1704999053262,-150.0,0.00044382,2]
[311258458,1704999053271,-550.0,0.00044383,7]
[311258459,1704999053280,-350.0,0.00044384,120]
[311258460,1704999053289,-150.0,0.00044387,2]
[311258461,1704999053298,-6550.586423,0.00044397,2]
[311258462,1704999053307,-625.0,0.000444,2]
[311258463,1704999053316,-8305.4368942,0.000444,19]
[311258464,1704999053326,-2002.24,0.000444,2]
[311258465,1704999053335,-2519.26341924,0.000444,6]
[311258466,1704999053344,-543.574105,0.000444,2]
[311258467,1704999053353,-555.46,0.00044411,3]
[311258468,1704999053362,-150.0,0.00044411,2]
[311258469,1704999053371,-150.0,0.00044417,2]
[311258470,1704999053380,-150.0,0.00044428,2]
[311258471,1704999053389,-150.0,0.00044429,2]
[311258472,1704999053399,-150.0,0.00044432,2]
[311258473,1704999053408,-150.0,0.00044445,2]
[311258474,1704999053417,-150.0,0.00044445,2]
[311258475,1704999053428,-300.0,0.00044451,30]
[311258476,1704999053438,-300.0,0.00044451,30]
[311258477,1704999053447,-317.03589178,0.00044451,30]
[311258478,1704999053456,-301.25,0.00044454,2]
[311258479,1704999053466,-835.22,0.00044454,2]
[311258480,1704999053474,-627.98,0.00044454,2]
[311258481,1704999053483,-1500.0,0.00044455,2]
[311258482,1704999053493,-150.0,0.00044462,2]
[311258483,1704999053502,-300.0,0.00044466,2]
[311258484,1704999053511,-150.0,0.00044468,2]
[311258485,1704999053520,-150.0,0.00044468,2]
[311258486,1704999053530,-400.0,0.0004447,3]
[311258487,1704999053539,-150.0,0.00044476,2]
[311258488,1704999053548,-300.0,0.00044476,2]
[311258489,1704999053557,-500.0,0.0004449,4]
[311258490,1704999053566,-500.0,0.0004449,4]
[311258491,1704999053575,-500.0,0.0004449,4]
[311258492,1704999053585,-500.0,0.0004449,4]
[311258493,1704999053594,-349.73416537,0.0004449,4]
[311258494,1704999053603,-400.0,0.00044493,120]
[311258495,1704999053612,-150.0,0.00044495,2]
[311258496,1704999053621,-1830.16,0.000445,5]
[311258497,1704999053630,-4396171.2607237,0.000445,20]
[311258498,1704999053640,-151.0,0.000445,14]
[311258499,1704999053773,-500.0,0.000445,3]
[311258500,1704999053783,-151.0,0.000445,7]
[311258501,1704999053792,-3000.0,0.000445,39]
[311258502,1704999053801,-1410.623809,0.000445,14]
[311258503,1704999053810,-1410.623809,0.000445,14]
[311258504,1704999053820,-151.0,0.000445,14]
[311258505,1704999053829,-151.0,0.000445,14]
[311258506,1704999053839,-2740.209821,0.000445,14]
[311258507,1704999053852,-2740.209821,0.000445,14]
[311258508,1704999053862,-973.621287,0.000445,14]
[311258509,1704999053871,-973.621287,0.000445,14]
[311258510,1704999053881,-151.0,0.000445,14]
[311258511,1704999053890,-225.204416,0.000445,14]
[311258512,1704999053900,-856.517788,0.000445,14]
[311258513,1704999053909,-856.517788,0.000445,14]
[311258514,1704999053919,-151.0,0.000445,14]
[311258515,1704999053931,-151.0,0.000445,14]
[311258516,1704999053940,-2110.0,0.000445,15]
[311258517,1704999053950,-151.0,0.000445,14]
[311258518,1704999053959,-270.739334,0.000445,14]
[311258519,1704999053968,-270.739334,0.000445,14]
[311258520,1704999053978,-259.999034,0.000445,14]
[311258521,1704999053987,-151.0,0.000445,14]
[311258522,1704999053997,-236.58314,0.000445,7]
[311258523,1704999054007,-1268.520991,0.000445,2]
[311258524,1704999054017,-1411.99961524,0.000445,2]
[311258525,1704999054026,-151.0,0.000445,14]
[311258526,1704999054035,-774.8111208,0.000445,2]
[311258527,1704999054045,-151.0,0.000445,14]
[311258528,1704999054054,-300.0,0.00044502,2]
[311258529,1704999054064,-682.18168845,0.00044503,23]
[311258530,1704999054074,-500.0,0.00044508,7]
[311258531,1704999054083,-500.0,0.00044508,7]
[311258532,1704999054093,-3000.0,0.0004451,39]
[311258533,1704999054102,-150.0,0.00044517,2]
[311258534,1704999054111,-150.0,0.00044517,2]
[311258535,1704999054120,-150.0,0.00044519,2]
[311258536,1704999054129,-3000.0,0.0004452,39]
[311258537,1704999054139,-150.0,0.00044525,2]
[311258538,1704999054148,-150.0,0.00044527,2]
[311258539,1704999054158,-3000.0,0.0004453,39]
[311258540,1704999054167,-150.0,0.00044532,2]
[311258541,1704999054179,-5194.508513,0.0004454,39]
[311258542,1704999054188,-150.0,0.00044545,2]
[311258543,1704999054197,-5796.27796588,0.0004455,2]
[311258544,1704999054207,-50041.7966609,0.0004455,2]
[311258545,1704999054216,-3000.0,0.0004455,23]
[311258546,1704999054225,-150.0,0.00044556,2]
[311258547,1704999054234,-150.0,0.00044556,2]
[311258548,1704999054243,-1500.0,0.00044567,2]
[311258549,1704999054252,-150.0,0.00044568,2]
[311258550,1704999054261,-697.50549141,0.0004457,3]
[311258551,1704999054271,-400.0,0.0004457,3]
[311258552,1704999054281,-500.0,0.00044575,30]
[311258553,1704999054290,-181.37515745,0.00044575,30]
[311258554,1704999054299,-491.07257514,0.00044575,30]
[311258555,1704999054308,-150.0,0.00044579,2]
[311258556,1704999054317,-150.0,0.0004458,2]
[311258557,1704999054326,-1500.0,0.0004459,2]
[311258558,1704999054336,-400.57,0.00044593,2]
[311258559,1704999054345,-939.68,0.00044593,2]
[311258560,1704999054354,-2745.13816245,0.00044595,5]
[311258561,1704999054363,-433.0,0.000446,30]
[311258562,1704999054372,-911.1,0.000446,30]
[311258563,1704999054382,-300.0,0.00044608,2]
[311258564,1704999054391,-300.0,0.00044609,2]
[311258565,1704999054400,-150.0,0.00044617,2]
[311258566,1704999054409,-150.0,0.00044623,2]
[311258567,1704999054418,-150.0,0.00044625,2]
[311258568,1704999054431,-150.0,0.00044627,2]
[311258569,1704999054440,-150.0,0.00044629,2]
[311258570,1704999054449,-177.8897533,0.0004463,2]
[311258571,1704999054459,-1500.0,0.00044633,2]
[311258572,1704999054469,-200.0,0.00044639,30]
[311258573,1704999054478,-800.0,0.00044639,30]
[311258574,1704999054487,-682.18168845,0.00044651,24]
[311258575,1704999054496,-550.0,0.00044657,7]
[311258576,1704999054506,-150.0,0.0004466,2]
[311258577,1704999054515,-150.0,0.00044664,2]
[311258578,1704999054525,-150.0,0.00044667,2]
[311258579,1704999054534,-150.0,0.00044675,2]
[311258580,1704999054543,-150.0,0.00044681,2]
[311258581,1704999054553,-1500.0,0.00044683,2]
[311258582,1704999054562,-150.0,0.00044685,2]
[311258583,1704999054572,-150.0,0.00044716,2]
[311258584,1704999054581,-300.0,0.0004472,2]
[311258585,1704999054591,-150.0,0.00044725,2]
[311258586,1704999054601,-1500.0,0.00044727,2]
[311258587,1704999054610,-150.0,0.00044728,2]
[311258588,1704999054619,-407.88,0.0004473,2]
[311258589,1704999054629,-150.0,0.0004473,2]
[311258590,1704999054638,-417.71,0.0004473,2]
[311258591,1704999054647,-159.47,0.0004473,2]
[311258592,1704999054657,-182.6,0.0004473,2]
[311258593,1704999054666,-314.07,0.0004473,2]
[311258594,1704999054676,-293.84,0.0004473,2]
[311258595,1704999054686,-302.04,0.0004473,2]
[311258596,1704999054695,-177.65,0.0004473,2]
[311258597,1704999054705,-150.0,0.0004473,2]
[311258598,1704999054714,-150.0,0.00044734,2]
[311258599,1704999054723,-150.0,0.00044734,2]
[311258600,1704999054733,-150.0,0.00044735,2]
[311258601,1704999054742,-1500.0,0.00044735,2]
[311258602,1704999054751,-150.0,0.00044742,2]
[311258603,1704999054760,-634.64,0.00044743,2]
[311258604,1704999054769,-242.92012067,0.00044744,2]
[311258605,1704999054778,-476.9803297,0.0004475,30]
[311258606,1704999054787,-150.0,0.00044755,2]
[311258607,1704999054796,-150.0,0.00044774,2]
[311258608,1704999054806,-1000.0,0.00044775,2]
[311258609,1704999054815,-1000.0,0.00044775,2]
[311258610,1704999054824,-1000.0,0.00044775,2]
[311258611,1704999054834,-1000.0,0.00044775,2]
[311258612,1704999054843,-1000.0,0.00044775,2]
[311258613,1704999054852,-1000.0,0.00044775,2]
[311258614,1704999054862,-572.0966,0.00044775,2]
[311258615,1704999054871,-500.0,0.00044775,2]
[311258616,1704999054881,-500.0,0.00044775,2]
[311258617,1704999054890,-500.0,0.00044775,2]
[311258618,1704999054900,-500.0,0.00044775,2]
[311258619,1704999054909,-500.0,0.00044775,2]
[311258620,1704999054919,-500.0,0.00044775,2]
[311258621,1704999054929,-500.0,0.00044775,2]
[311258622,1704999054939,-500.0,0.00044775,2]
[311258623,1704999054948,-500.0,0.00044775,2]
[311258624,1704999054957,-500.0,0.00044775,2]
[311258625,1704999054966,-500.0,0.00044775,2]
[311258626,1704999054976,-500.0,0.00044775,2]
[311258627,1704999054985,-500.0,0.00044775,2]
[311258628,1704999054994,-154.7978,0.00044775,2]
[311258629,1704999055003,-500.0,0.00044781,7]
[311258630,1704999055013,-500.0,0.00044781,7]
[311258631,1704999055022,-150.0,0.00044782,2]
[311258632,1704999055031,-150.0,0.00044788,2]
[311258633,1704999055041,-150.0,0.0004479,2]
[311258634,1704999055050,-150.0,0.00044796,2]
[311258635,1704999055059,-682.18168845,0.000448,24]
[311258636,1704999055068,-150.0,0.00044801,2]
[311258637,1704999055078,-6550.586423,0.0004481,2]
[311258638,1704999055087,-150.0,0.00044812,2]
[311258639,1704999055102,-150.0,0.00044815,2]
[311258640,1704999055110,-150.0,0.0004482,2]
[311258641,1704999055120,-150.0,0.0004482,2]
[311258642,1704999055129,-150.0,0.0004482,2]
[311258643,1704999055139,-160.04902525,0.00044827,30]
[311258644,1704999055148,-1500.0,0.00044832,2]
[311258645,1704999055158,-1500.0,0.00044832,2]
[311258646,1704999055167,-150.0,0.00044833,2]
[311258647,1704999055176,-150.0,0.00044836,2]
[311258648,1704999055186,-150.0,0.00044839,2]
[311258649,1704999055195,-3000.0,0.0004484,25]
[311258650,1704999055204,-300.0,0.00044843,2]
[311258651,1704999055214,-150.0,0.00044849,2]
[311258652,1704999055223,-1000.0,0.0004485,4]
[311258653,1704999055233,-150.0,0.00044856,2]
[311258654,1704999055242,-150.0,0.00044862,2]
[311258655,1704999055251,-150.0,0.00044865,2]
[311258656,1704999055261,-150.0,0.00044869,2]
[311258657,1704999055271,-156.0,0.00044877,90]
[311258658,1704999055280,-153.0,0.00044877,90]
[311258659,1704999055290,-150.0,0.00044877,2]
[311258660,1704999055300,-150.0,0.00044891,2]
[311258661,1704999055309,-150.0,0.00044893,2]
[311258662,1704999055319,-150.0,0.00044897,2]
[311258663,1704999055327,-150.0,0.00044899,2]
[311258664,1704999055337,-456196.72631981,0.000449,30]
[311258665,1704999055346,-19511.173418,0.000449,2]
[311258666,1704999055355,-1121.0,0.000449,30]
[311258667,1704999055364,-150.0,0.00044906,2]
[311258668,1704999055375,-151.68522207,0.0004491,25]
[311258669,1704999055384,-300.0,0.00044911,2]
[311258670,1704999055393,-150.0,0.00044919,2]
[311258671,1704999055403,-150.0,0.00044922,2]
[311258672,1704999055412,-150.0,0.00044931,2]
[311258673,1704999055421,-550.0,0.00044931,7]
[311258674,1704999055433,-150.0,0.00044937,2]
[311258675,1704999055442,-1500.0,0.00044949,2]
[311258676,1704999055452,-167.55570048,0.0004495,120]
[311258677,1704999055461,-300.0,0.00044954,2]
[311258678,1704999055471,-63505.371644,0.00044955,2]
[311258679,1704999055480,-1500.0,0.00044955,2]
[311258680,1704999055490,-1500.0,0.00044962,2]
[311258681,1704999055499,-1500.0,0.00044969,2]
[311258682,1704999055509,-400.0,0.0004497,3]
[311258683,1704999055519,-400.0,0.0004497,3]
[311258684,1704999055528,-150.0,0.00044979,2]
[311258685,1704999055538,-438.55154137,0.0004498,3]
[311258686,1704999055547,-264.41538905,0.0004498,3]
[311258687,1704999055557,-202.5,0.0004498,3]
[311258688,1704999055566,-168.64593695,0.00044984,30]
[311258689,1704999055576,-5000.0,0.00044986,4]
[311258690,1704999055585,-500.0,0.00044987,30]
[311258691,1704999055594,-200.0,0.00044987,34]
[311258692,1704999055603,-150.0,0.00044989,2]
[311258693,1704999055613,-150.0,0.00044996,2]
[311258694,1704999055623,-3291.64435569,0.00044999,2]
[311258695,1704999055633,-300.02,0.00044999,2]
[311258696,1704999055642,-184.100401,0.00045,14]
[311258697,1704999055652,-5707.71891452,0.00045,120]
[311258698,1704999055661,-300.78626975,0.00045,14]
[311258699,1704999055789,-500.0994,0.00045,120]
[311258700,1704999055800,-3407362.61003707,0.00045,30]
[311258701,1704999055809,-151.0,0.00045,14]
[311258702,1704999055819,-109500.74946775,0.00045,2]
[311258703,1704999055828,-151.900504,0.00045,14]
[311258704,1704999055837,-943.75440876,0.00045,30]
[311258705,1704999055846,-151.0,0.00045,14]
[311258706,1704999055858,-315.29162198,0.00045,30]
[311258707,1704999055868,-552.65585599,0.00045,60]
[311258708,1704999055878,-300.55937546,0.00045,30]
[311258709,1704999055887,-150.0,0.00045,35]
[311258710,1704999055896,-15469.74804997,0.00045,30]
[311258711,1704999055906,-2000.0,0.00045,7]
[311258712,1704999055915,-200.0,0.00045,7]
[311258713,1704999055926,-600.0,0.00045,46]
[311258714,1704999055937,-26045.7349481,0.00045,14]
[311258715,1704999056276,-187298.00479327,0.00045,14]
[311258716,1704999056287,-154.690788,0.00045,7]
[311258717,1704999056296,-151.0,0.00045,14]
[311258718,1704999056306,-449.581223,0.00045,14]
[311258719,1704999056315,-449.581223,0.00045,14]
[311258720,1704999056325,-151.0,0.00045,14]
[311258721,1704999056334,-2000.0,0.00045,7]
[311258722,1704999056344,-14073.31476726,0.00045,30]
[311258723,1704999056353,-200.0,0.00045,7]
[311258724,1704999056363,-2000.0,0.00045,120]
[311258725,1704999056372,-2000.0,0.00045,120]
[311258726,1704999056382,-2000.0,0.00045,120]
[311258727,1704999056392,-2000.0,0.00045,120]
[311258728,1704999056401,-2000.0,0.00045,120]
[311258729,1704999056411,-1920.33243858,0.00045,120]
[311258730,1704999056420,-149999.0,0.00045,32]
[311258731,1704999056434,-1111.62009524,0.00045,32]
[311258732,1704999056443,-151.0,0.00045,14]
[311258733,1704999056453,-151.0,0.00045,14]
[311258734,1704999056462,-3000.0,0.00045,90]
[311258735,1704999056472,-151.0,0.00045,14]